[Event "Live Chess"]
[Site "Chess.com"]
[Date "2023.09.16"]
[Round "-"]
[White "Yurxx21"]
[Black "silvaaps"]
[Result "1-0"]
[WhiteElo "1491"]
[BlackElo "764"]
[TimeControl "900+5"]
[EndTime "15:20:07 PDT"]
[Termination "Yurxx21 venceu por xeque-mate"]

1. e4 {[%clk 0:15:02.5]} 1... d5 {[%clk 0:15:04.4]} 2. exd5 {[%clk 0:15:05.8]}
2... Qxd5 {[%clk 0:15:08.8]} 3. Nc3 {[%clk 0:15:09.9]} 3... Qe5+ {[%clk
0:15:11.3]} 4. Be2 {[%clk 0:15:14.1]} 4... Nc6 {[%clk 0:15:09]} 5. Nf3 {[%clk
0:15:17.4]} 5... Qf6 {[%clk 0:15:10.5]} 6. O-O {[%clk 0:15:21.5]} 6... Bg4
{[%clk 0:15:14.2]} 7. h3 {[%clk 0:15:18.4]} 7... Bxf3 {[%clk 0:15:18.1]} 8. Bxf3
{[%clk 0:15:23.3]} 8... O-O-O {[%clk 0:15:22.2]} 9. d3 {[%clk 0:15:23.6]} 9...
Nd4 {[%clk 0:15:23.8]} 10. Be3 {[%clk 0:15:12.6]} 10... Nxf3+ {[%clk 0:15:25.9]}
11. Qxf3 {[%clk 0:15:14.9]} 11... Qxf3 {[%clk 0:15:29.5]} 12. gxf3 {[%clk
0:15:19.8]} 12... e6 {[%clk 0:15:33.3]} 13. Bxa7 {[%clk 0:15:20.4]} 13... b6
{[%clk 0:15:37]} 14. a4 {[%clk 0:15:04.8]} 14... Kb7 {[%clk 0:15:40]} 15. Bxb6
{[%clk 0:14:49.2]} 15... cxb6 {[%clk 0:15:43]} 16. a5 {[%clk 0:14:52.7]} 16...
bxa5 {[%clk 0:15:45.2]} 17. Rxa5 {[%clk 0:14:52.4]} 17... Bb4 {[%clk 0:15:48.6]}
18. Rb5+ {[%clk 0:14:53.7]} 18... Kc6 {[%clk 0:15:49.5]} 19. Rxb4 {[%clk
0:14:56.4]} 19... Nf6 {[%clk 0:15:53.3]} 20. Ra1 {[%clk 0:14:53.8]} 20... Ra8
{[%clk 0:15:45.4]} 21. Rxa8 {[%clk 0:14:47.1]} 21... Rxa8 {[%clk 0:15:48.7]} 22.
Rc4+ {[%clk 0:14:51.5]} 22... Kd7 {[%clk 0:15:51.7]} 23. Ra4 {[%clk 0:14:42.1]}
23... Rxa4 {[%clk 0:15:41.8]} 24. Nxa4 {[%clk 0:14:47]} 24... Nd5 {[%clk
0:15:46.1]} 25. Kg2 {[%clk 0:14:39.4]} 25... Kc6 {[%clk 0:15:49.7]} 26. b3
{[%clk 0:14:30.7]} 26... Kb5 {[%clk 0:15:51.5]} 27. c4+ {[%clk 0:14:31.3]} 27...
Kb4 {[%clk 0:15:52.1]} 28. cxd5 {[%clk 0:14:35.3]} 28... exd5 {[%clk 0:15:55.8]}
29. Nb6 {[%clk 0:14:34.9]} 29... d4 {[%clk 0:15:57.7]} 30. Nd7 {[%clk
0:14:32.3]} 30... Kxb3 {[%clk 0:16:02]} 31. Ne5 {[%clk 0:14:35.9]} 31... f6
{[%clk 0:16:03.3]} 32. Nc6 {[%clk 0:14:34.1]} 32... Kc3 {[%clk 0:16:06.6]} 33.
Kf1 {[%clk 0:14:27.9]} 33... Kxd3 {[%clk 0:16:10.4]} 34. Ke1 {[%clk 0:14:31.8]}
34... Kc3 {[%clk 0:16:14.8]} 35. Kd1 {[%clk 0:14:29.3]} 35... d3 {[%clk
0:16:19]} 36. Ne7 {[%clk 0:14:31.9]} 36... d2 {[%clk 0:16:16.1]} 37. Nf5 {[%clk
0:14:35.2]} 37... g6 {[%clk 0:16:19.9]} 38. Ng3 {[%clk 0:14:29.7]} 38... Kd3
{[%clk 0:16:22.8]} 39. Ne4 {[%clk 0:14:32.6]} 39... f5 {[%clk 0:16:26.1]} 40.
Nxd2 {[%clk 0:14:33]} 40... g5 {[%clk 0:16:29.2]} 41. Ke1 {[%clk 0:14:35.2]}
41... g4 {[%clk 0:16:28.7]} 42. fxg4 {[%clk 0:14:34.2]} 42... fxg4 {[%clk
0:16:32.9]} 43. hxg4 {[%clk 0:14:38.7]} 43... Kd4 {[%clk 0:16:36.8]} 44. Ke2
{[%clk 0:14:41]} 44... Ke5 {[%clk 0:16:41.1]} 45. f3 {[%clk 0:14:40.2]} 45...
Kf4 {[%clk 0:16:44.8]} 46. Kf2 {[%clk 0:14:44.4]} 46... Kg5 {[%clk 0:16:44.5]}
47. Kg3 {[%clk 0:14:46.4]} 47... h6 {[%clk 0:16:47.4]} 48. f4+ {[%clk
0:14:50.2]} 48... Kg6 {[%clk 0:16:50.9]} 49. Kh4 {[%clk 0:14:53.9]} 49... Kg7
{[%clk 0:16:53.3]} 50. g5 {[%clk 0:14:58.1]} 50... hxg5+ {[%clk 0:16:57.4]} 51.
fxg5 {[%clk 0:15:02.5]} 51... Kg6 {[%clk 0:17:02.1]} 52. Ne4 {[%clk 0:15:06.8]}
52... Kf5 {[%clk 0:17:06.2]} 53. Nd6+ {[%clk 0:15:11.1]} 53... Kg6 {[%clk
0:17:08.5]} 54. Kg4 {[%clk 0:15:08.6]} 54... Kg7 {[%clk 0:17:11.8]} 55. Kf5
{[%clk 0:15:11.2]} 55... Kh8 {[%clk 0:17:14.8]} 56. Kf6 {[%clk 0:15:15.1]} 56...
Kh7 {[%clk 0:17:19]} 57. Ne4 {[%clk 0:15:14.8]} 57... Kg8 {[%clk 0:17:22.4]} 58.
Kg6 {[%clk 0:15:18]} 58... Kh8 {[%clk 0:17:21.3]} 59. Ng3 {[%clk 0:15:09.1]}
59... Kg8 {[%clk 0:17:24.9]} 60. Nf5 {[%clk 0:15:06]} 60... Kf8 {[%clk
0:17:28.4]} 61. Kh7 {[%clk 0:15:08]} 61... Kf7 {[%clk 0:17:31.9]} 62. g6+ {[%clk
0:15:12.6]} 62... Kf8 {[%clk 0:17:35.2]} 63. g7+ {[%clk 0:15:16.2]} 63... Kf7
{[%clk 0:17:39.3]} 64. g8=Q+ {[%clk 0:15:20.2]} 64... Kf6 {[%clk 0:17:43.5]} 65.
Qg6+ {[%clk 0:15:23.9]} 65... Ke5 {[%clk 0:17:47.5]} 66. Ng3 {[%clk 0:15:15.5]}
66... Kf4 {[%clk 0:17:51]} 67. Qe4+ {[%clk 0:15:03.9]} 67... Kxg3 {[%clk
0:17:54.2]} 68. Kg6 {[%clk 0:15:04.8]} 68... Kh3 {[%clk 0:17:56]} 69. Kg5 {[%clk
0:15:06.7]} 69... Kh2 {[%clk 0:17:59.4]} 70. Qf3 {[%clk 0:15:03.5]} 70... Kg1
{[%clk 0:18:02.9]} 71. Kg4 {[%clk 0:15:06.4]} 71... Kh2 {[%clk 0:18:06.6]} 72.
Kf4 {[%clk 0:14:36.9]} 72... Kg1 {[%clk 0:18:09.8]} 73. Qa3 {[%clk 0:14:33.6]}
73... Kh1 {[%clk 0:18:12.4]} 74. Qa2 {[%clk 0:14:37.6]} 74... Kg1 {[%clk
0:18:16]} 75. Kg3 {[%clk 0:14:35]} 75... Kh1 {[%clk 0:18:19.3]} 76. Qh2# {[%clk
0:14:38.4]} 1-0

[Event "Live Chess"]
[Site "Chess.com"]
[Date "2023.09.16"]
[Round "-"]
[White "Japaawz"]
[Black "Tercette"]
[Result "1-0"]
[WhiteElo "397"]
[BlackElo "161"]
[TimeControl "900+5"]
[EndTime "15:21:33 PDT"]
[Termination "Japaawz venceu por xeque-mate"]

1. e4 {[%clk 0:14:59.8]} 1... e5 {[%clk 0:15:02.5]} 2. Nf3 {[%clk 0:15:03.1]}
2... f6 {[%clk 0:14:57.4]} 3. d4 {[%clk 0:15:06.2]} 3... d6 {[%clk 0:14:55.6]}
4. d5 {[%clk 0:15:08.4]} 4... Qe7 {[%clk 0:14:48.2]} 5. Bc4 {[%clk 0:15:06.4]}
5... Bd7 {[%clk 0:14:51.1]} 6. O-O {[%clk 0:15:10.3]} 6... Na6 {[%clk
0:14:53.4]} 7. Nh4 {[%clk 0:15:10.9]} 7... O-O-O {[%clk 0:14:56.8]} 8. Be3
{[%clk 0:15:07.8]} 8... Nb4 {[%clk 0:14:59.6]} 9. c3 {[%clk 0:15:03.2]} 9... Na6
{[%clk 0:14:53.1]} 10. Na3 {[%clk 0:15:06.3]} 10... b5 {[%clk 0:14:54.2]} 11.
Bd3 {[%clk 0:15:08]} 11... b4 {[%clk 0:14:55.7]} 12. Nc4 {[%clk 0:14:51.3]}
12... Nc5 {[%clk 0:14:57.7]} 13. Na5 {[%clk 0:14:53]} 13... Ba4 {[%clk
0:15:00.6]} 14. Bc2 {[%clk 0:14:51.3]} 14... Nh6 {[%clk 0:14:46.3]} 15. cxb4
{[%clk 0:14:29.8]} 15... Nb7 {[%clk 0:14:42.5]} 16. Bxa4 {[%clk 0:14:31.4]}
16... Nxa5 {[%clk 0:14:45.9]} 17. bxa5 {[%clk 0:14:35.1]} 17... Ng4 {[%clk
0:14:41.7]} 18. Rc1 {[%clk 0:14:37.1]} 18... Nxe3 {[%clk 0:14:42.3]} 19. fxe3
{[%clk 0:14:39.9]} 19... g5 {[%clk 0:14:44.1]} 20. Nf5 {[%clk 0:14:42.2]} 20...
Bh6 {[%clk 0:14:44.4]} 21. Bc6 {[%clk 0:14:31.7]} 21... g4 {[%clk 0:14:42.4]}
22. Rf2 {[%clk 0:14:35]} 22... Bxe3 {[%clk 0:14:45]} 23. Nxe3 {[%clk 0:14:36.6]}
23... f5 {[%clk 0:14:46.1]} 24. exf5 {[%clk 0:14:37.5]} 24... Rhf8 {[%clk
0:14:45.9]} 25. a6 {[%clk 0:14:36.1]} 25... e4 {[%clk 0:14:38.3]} 26. Qb3 {[%clk
0:14:38.8]} 26... Rf6 {[%clk 0:14:35.4]} 27. Qb7# {[%clk 0:14:41.7]} 1-0

[Event "Live Chess"]
[Site "Chess.com"]
[Date "2023.09.16"]
[Round "-"]
[White "VictoryisAbsolute"]
[Black "Larissa1413"]
[Result "0-1"]
[WhiteElo "610"]
[BlackElo "1922"]
[TimeControl "900+5"]
[EndTime "15:22:16 PDT"]
[Termination "Larissa1413 venceu por xeque-mate"]

1. e4 {[%clk 0:14:57.8]} 1... e6 {[%clk 0:14:55.8]} 2. Nf3 {[%clk 0:14:57.6]}
2... d5 {[%clk 0:14:57.6]} 3. Qe2 {[%clk 0:14:57.4]} 3... Nf6 {[%clk 0:14:55.3]}
4. d3 {[%clk 0:14:59.4]} 4... c5 {[%clk 0:14:55.7]} 5. e5 {[%clk 0:15:02.1]}
5... Nfd7 {[%clk 0:14:57.6]} 6. g3 {[%clk 0:14:59.4]} 6... Nc6 {[%clk 0:15:00]}
7. Bg2 {[%clk 0:14:59.2]} 7... Be7 {[%clk 0:14:27]} 8. O-O {[%clk 0:14:36.5]}
8... d4 {[%clk 0:14:28.6]} 9. c3 {[%clk 0:14:31.8]} 9... Qc7 {[%clk 0:14:24.9]}
10. Bg5 {[%clk 0:14:22.1]} 10... Ndxe5 {[%clk 0:14:11.9]} 11. Bxe7 {[%clk
0:14:04.4]} 11... Nxf3+ {[%clk 0:13:54.6]} 12. Bxf3 {[%clk 0:14:02.6]} 12...
Nxe7 {[%clk 0:13:42.2]} 13. cxd4 {[%clk 0:13:52.3]} 13... cxd4 {[%clk
0:13:38.6]} 14. Qe3 {[%clk 0:13:47.8]} 14... Qd6 {[%clk 0:13:30.3]} 15. Qe2
{[%clk 0:13:37.6]} 15... O-O {[%clk 0:13:31.4]} 16. Nd2 {[%clk 0:13:11.3]} 16...
Rb8 {[%clk 0:13:18.4]} 17. Nc4 {[%clk 0:12:51.3]} 17... Qd8 {[%clk 0:13:15.6]}
18. b4 {[%clk 0:12:28.8]} 18... b6 {[%clk 0:13:15]} 19. Rab1 {[%clk 0:12:21.6]}
19... Nd5 {[%clk 0:12:54.7]} 20. Bxd5 {[%clk 0:11:38.4]} 20... Qxd5 {[%clk
0:12:49.9]} 21. a3 {[%clk 0:11:20.5]} 21... Bb7 {[%clk 0:12:51]} 22. Qe5 {[%clk
0:11:11.3]} 22... Qg2# {[%clk 0:12:51.7]} 0-1

[Event "Live Chess"]
[Site "Chess.com"]
[Date "2023.09.16"]
[Round "-"]
[White "Gustavoksbr"]
[Black "MNPedroh"]
[Result "0-1"]
[WhiteElo "1892"]
[BlackElo "1858"]
[TimeControl "900+5"]
[EndTime "15:22:23 PDT"]
[Termination "MNPedroh venceu por desistência"]

1. e4 {[%clk 0:14:59.7]} 1... e5 {[%clk 0:15:02.7]} 2. Nf3 {[%clk 0:15:01.5]}
2... Nc6 {[%clk 0:15:06.8]} 3. c3 {[%clk 0:14:54.1]} 3... d5 {[%clk 0:15:09.3]}
4. Qa4 {[%clk 0:14:54.9]} 4... dxe4 {[%clk 0:14:52.8]} 5. Nxe5 {[%clk
0:14:53.2]} 5... Bd7 {[%clk 0:14:31.6]} 6. Nxd7 {[%clk 0:14:52.4]} 6... Qxd7
{[%clk 0:14:30.3]} 7. Qxe4+ {[%clk 0:14:55]} 7... Be7 {[%clk 0:14:32.3]} 8. d4
{[%clk 0:14:09.6]} 8... Nf6 {[%clk 0:14:22.5]} 9. Qf3 {[%clk 0:13:49.5]} 9...
O-O {[%clk 0:13:34.4]} 10. Bd3 {[%clk 0:13:30.9]} 10... Rfe8 {[%clk 0:13:03.5]}
11. O-O {[%clk 0:13:09.1]} 11... Rad8 {[%clk 0:11:37.6]} 12. Bg5 {[%clk
0:12:34.2]} 12... h6 {[%clk 0:09:30.3]} 13. Bh4 {[%clk 0:12:17.4]} 13... Qd5
{[%clk 0:08:49.7]} 14. Nd2 {[%clk 0:11:26.3]} 14... Nxd4 {[%clk 0:06:49.4]} 15.
Qxd5 {[%clk 0:10:55]} 15... Rxd5 {[%clk 0:06:54.3]} 16. Bxf6 {[%clk 0:09:18.3]}
16... Bxf6 {[%clk 0:06:40.2]} 17. Rfe1 {[%clk 0:08:47.5]} 17... Rxe1+ {[%clk
0:05:39.4]} 18. Rxe1 {[%clk 0:08:50]} 18... Ne6 {[%clk 0:05:43.6]} 19. Re3
{[%clk 0:08:29.6]} 19... Bg5 {[%clk 0:05:16.6]} 20. c4 {[%clk 0:08:28.4]} 20...
Rd8 {[%clk 0:04:45.7]} 0-1

[Event "Live Chess"]
[Site "Chess.com"]
[Date "2023.09.16"]
[Round "-"]
[White "Cantalicioo"]
[Black "ViniciusBritoFc"]
[Result "1-0"]
[WhiteElo "1512"]
[BlackElo "1171"]
[TimeControl "900+5"]
[EndTime "15:23:48 PDT"]
[Termination "Cantalicioo venceu por desistência"]

1. d4 {[%clk 0:14:50.8]} 1... d5 {[%clk 0:15:03.6]} 2. c4 {[%clk 0:14:54]} 2...
Nf6 {[%clk 0:15:05.1]} 3. Nc3 {[%clk 0:14:55.8]} 3... e6 {[%clk 0:15:09]} 4. a3
{[%clk 0:14:59.3]} 4... Nc6 {[%clk 0:15:11]} 5. Nf3 {[%clk 0:15:01.9]} 5... dxc4
{[%clk 0:15:12.3]} 6. e3 {[%clk 0:15:04.5]} 6... Be7 {[%clk 0:15:03.9]} 7. Bxc4
{[%clk 0:15:07.4]} 7... O-O {[%clk 0:15:07.1]} 8. O-O {[%clk 0:15:10.2]} 8... a6
{[%clk 0:15:03.5]} 9. Ba2 {[%clk 0:15:06.8]} 9... h6 {[%clk 0:14:53.5]} 10. Re1
{[%clk 0:15:06.8]} 10... Bd7 {[%clk 0:14:56]} 11. e4 {[%clk 0:15:03.3]} 11...
Be8 {[%clk 0:14:33.3]} 12. e5 {[%clk 0:15:03.7]} 12... Nd7 {[%clk 0:14:37]} 13.
Bb1 {[%clk 0:15:06.1]} 13... Nb6 {[%clk 0:14:36.1]} 14. Qc2 {[%clk 0:15:09.6]}
14... g6 {[%clk 0:14:36.5]} 15. Bxh6 {[%clk 0:15:09.2]} 15... Nxd4 {[%clk
0:14:21.5]} 16. Nxd4 {[%clk 0:15:11]} 16... Qxd4 {[%clk 0:14:25]} 17. Bxf8
{[%clk 0:15:13.1]} 17... Bxf8 {[%clk 0:14:28.1]} 18. Qd3 {[%clk 0:15:12.6]}
18... Rd8 {[%clk 0:14:21.1]} 19. Qxd4 {[%clk 0:15:14.2]} 19... Rxd4 {[%clk
0:14:26]} 20. Be4 {[%clk 0:15:08.5]} 20... c6 {[%clk 0:14:23.4]} 21. Rad1 {[%clk
0:15:05.2]} 21... Bc5 {[%clk 0:14:24]} 22. Rxd4 {[%clk 0:15:03.4]} 22... Bxd4
{[%clk 0:14:28.9]} 23. Rd1 {[%clk 0:14:36.6]} 23... Bxe5 {[%clk 0:14:26.6]} 24.
Rd8 {[%clk 0:14:37.8]} 24... Kf8 {[%clk 0:14:28.8]} 25. Rb8 {[%clk 0:14:34.3]}
25... Bxc3 {[%clk 0:14:23.4]} 26. bxc3 {[%clk 0:14:35]} 26... f5 {[%clk
0:14:24.1]} 27. Bf3 {[%clk 0:14:34.5]} 27... Na4 {[%clk 0:14:06.9]} 28. Rxb7
{[%clk 0:14:25.3]} 28... Nxc3 {[%clk 0:14:07.2]} 29. Rb6 {[%clk 0:14:24.1]}
29... e5 {[%clk 0:14:03]} 30. Bxc6 {[%clk 0:14:20.3]} 30... Bxc6 {[%clk
0:13:58.8]} 31. Rxc6 {[%clk 0:14:21.2]} 31... Ne2+ {[%clk 0:14:01.8]} 32. Kf1
{[%clk 0:14:22.3]} 32... Nd4 {[%clk 0:14:04.4]} 33. Rxa6 {[%clk 0:14:23.3]}
33... Kg7 {[%clk 0:14:07.8]} 34. f3 {[%clk 0:14:21.2]} 34... Kh6 {[%clk
0:14:09.1]} 35. Ra5 {[%clk 0:14:18.7]} 35... e4 {[%clk 0:14:07.9]} 36. fxe4
{[%clk 0:14:20.2]} 36... fxe4 {[%clk 0:14:12.8]} 37. Ra4 {[%clk 0:14:21.9]}
37... Nc2 {[%clk 0:14:14.7]} 38. Ke2 {[%clk 0:14:15.8]} 38... Kg5 {[%clk
0:14:13.8]} 39. Kd2 {[%clk 0:14:16.6]} 39... Na1 {[%clk 0:14:16.5]} 40. Rxe4
{[%clk 0:14:10.9]} 40... Nb3+ {[%clk 0:14:19.4]} 41. Kc2 {[%clk 0:13:49.4]}
41... Nc5 {[%clk 0:14:19.1]} 42. Re5+ {[%clk 0:13:52]} 1-0

[Event "Live Chess"]
[Site "Chess.com"]
[Date "2023.09.16"]
[Round "-"]
[White "guto-XVI"]
[Black "Mateus_Claudius"]
[Result "0-1"]
[WhiteElo "1546"]
[BlackElo "1316"]
[TimeControl "900+5"]
[EndTime "15:23:57 PDT"]
[Termination "Mateus_Claudius venceu por xeque-mate"]

1. Nf3 {[%clk 0:15:03.1]} 1... Nf6 {[%clk 0:15:02.1]} 2. d4 {[%clk 0:15:06.6]}
2... d5 {[%clk 0:15:06.3]} 3. e3 {[%clk 0:15:10.1]} 3... c5 {[%clk 0:15:05.5]}
4. dxc5 {[%clk 0:15:12.8]} 4... e6 {[%clk 0:15:07.9]} 5. c4 {[%clk 0:15:16.8]}
5... Bxc5 {[%clk 0:15:09.7]} 6. Be2 {[%clk 0:15:19.6]} 6... O-O {[%clk
0:14:57.9]} 7. O-O {[%clk 0:15:15.8]} 7... Nc6 {[%clk 0:14:42.9]} 8. b3 {[%clk
0:15:06.4]} 8... e5 {[%clk 0:13:58]} 9. cxd5 {[%clk 0:15:05.6]} 9... Qxd5 {[%clk
0:13:45.2]} 10. Qxd5 {[%clk 0:15:06]} 10... Nxd5 {[%clk 0:13:48.9]} 11. Rd1
{[%clk 0:15:06.3]} 11... Nf6 {[%clk 0:12:48.3]} 12. Bb5 {[%clk 0:14:42]} 12...
Re8 {[%clk 0:11:57.3]} 13. Bb2 {[%clk 0:13:48.6]} 13... Bd7 {[%clk 0:11:15.6]}
14. Bxc6 {[%clk 0:13:26.6]} 14... Bxc6 {[%clk 0:11:18.3]} 15. Nxe5 {[%clk
0:13:26.5]} 15... Be7 {[%clk 0:09:35.9]} 16. Nxc6 {[%clk 0:13:14.5]} 16... bxc6
{[%clk 0:09:38.7]} 17. Nd2 {[%clk 0:13:19.1]} 17... Red8 {[%clk 0:09:14.6]} 18.
Nc4 {[%clk 0:13:21.8]} 18... Rd5 {[%clk 0:08:52.8]} 19. g3 {[%clk 0:13:06.2]}
19... Rad8 {[%clk 0:08:49.3]} 20. Rxd5 {[%clk 0:12:44.9]} 20... Rxd5 {[%clk
0:08:40.2]} 21. Kg2 {[%clk 0:12:46.3]} 21... Ne4 {[%clk 0:07:28.4]} 22. f3
{[%clk 0:12:31.2]} 22... Nd2 {[%clk 0:07:20.5]} 23. e4 {[%clk 0:11:50.6]} 23...
Rd8 {[%clk 0:05:49.1]} 24. Ne5 {[%clk 0:11:23.8]} 24... Nxb3 {[%clk 0:05:12.6]}
25. axb3 {[%clk 0:10:56.4]} 25... Rd2+ {[%clk 0:05:14.6]} 26. Kh3 {[%clk
0:10:54.6]} 26... Rxb2 {[%clk 0:05:13.2]} 27. Rxa7 {[%clk 0:10:57.7]} 27... g6
{[%clk 0:04:22.8]} 28. Nxc6 {[%clk 0:10:55.2]} 28... Bc5 {[%clk 0:04:16.3]} 29.
Rb7 {[%clk 0:10:43.3]} 29... Bg1 {[%clk 0:04:14.8]} 30. b4 {[%clk 0:10:27.3]}
30... h5 {[%clk 0:04:10.5]} 31. b5 {[%clk 0:10:21.1]} 31... Rxh2# {[%clk
0:04:10]} 0-1

[Event "Live Chess"]
[Site "Chess.com"]
[Date "2023.09.16"]
[Round "-"]
[White "Capi-D-Vara"]
[Black "Jonas_Rodrigues"]
[Result "1-0"]
[WhiteElo "1274"]
[BlackElo "1284"]
[TimeControl "900+5"]
[EndTime "15:24:24 PDT"]
[Termination "Capi-D-Vara venceu por desistência"]

1. e4 {[%clk 0:15:03]} 1... e5 {[%clk 0:15:04.1]} 2. Nf3 {[%clk 0:14:58.2]} 2...
Nc6 {[%clk 0:15:07.8]} 3. Bc4 {[%clk 0:15:01.7]} 3... Nf6 {[%clk 0:15:10.4]} 4.
Ng5 {[%clk 0:15:03.8]} 4... d5 {[%clk 0:15:14.1]} 5. exd5 {[%clk 0:15:07.1]}
5... Na5 {[%clk 0:15:18]} 6. Bb3 {[%clk 0:15:09.4]} 6... Nxb3 {[%clk 0:15:15.7]}
7. axb3 {[%clk 0:15:14.3]} 7... Qxd5 {[%clk 0:15:18.6]} 8. O-O {[%clk
0:15:11.9]} 8... Be7 {[%clk 0:15:17]} 9. Nc3 {[%clk 0:15:10.4]} 9... Qc6 {[%clk
0:15:14]} 10. Re1 {[%clk 0:15:11.7]} 10... e4 {[%clk 0:15:14.6]} 11. Ngxe4
{[%clk 0:14:19]} 11... O-O {[%clk 0:15:13.6]} 12. d4 {[%clk 0:14:18.9]} 12...
Nxe4 {[%clk 0:15:14.7]} 13. Nxe4 {[%clk 0:14:22]} 13... Bd6 {[%clk 0:15:16]} 14.
c4 {[%clk 0:13:27.2]} 14... Bf5 {[%clk 0:15:12.2]} 15. Nc3 {[%clk 0:12:22.4]}
15... Rfe8 {[%clk 0:15:03.7]} 16. Be3 {[%clk 0:11:57.6]} 16... Bb4 {[%clk
0:14:53.2]} 17. d5 {[%clk 0:11:29.9]} 17... Qg6 {[%clk 0:13:52.5]} 18. Qf3
{[%clk 0:10:51.2]} 18... Bxc3 {[%clk 0:13:48.2]} 19. bxc3 {[%clk 0:10:52.9]}
19... Be4 {[%clk 0:13:47.8]} 20. Qg3 {[%clk 0:10:51.9]} 20... Qxg3 {[%clk
0:13:38]} 21. hxg3 {[%clk 0:10:56.8]} 21... a6 {[%clk 0:13:35.8]} 22. b4 {[%clk
0:10:56.9]} 22... h6 {[%clk 0:13:38.8]} 23. b5 {[%clk 0:10:57]} 23... b6 {[%clk
0:13:22.6]} 24. Rxa6 {[%clk 0:10:46]} 24... Rxa6 {[%clk 0:13:24.6]} 25. bxa6
{[%clk 0:10:50.9]} 25... Bd3 {[%clk 0:13:26.4]} 26. Ra1 {[%clk 0:10:41.1]} 26...
Bxc4 {[%clk 0:13:27.6]} 27. a7 {[%clk 0:10:44.9]} 27... Ra8 {[%clk 0:13:28.1]}
28. Bf4 {[%clk 0:10:48.9]} 28... Bxd5 {[%clk 0:13:25.1]} 29. Bxc7 {[%clk
0:10:52.6]} 29... Kh7 {[%clk 0:13:25.6]} 30. Bxb6 {[%clk 0:10:49.9]} 30... Bc6
{[%clk 0:13:27.3]} 31. Bc7 {[%clk 0:10:50.3]} 31... Kg6 {[%clk 0:13:26.8]} 32.
f4 {[%clk 0:10:37.4]} 32... Rc8 {[%clk 0:13:30.3]} 33. Bb8 {[%clk 0:10:39.2]}
33... Ba8 {[%clk 0:13:31.4]} 34. Be5 {[%clk 0:10:20.3]} 34... f6 {[%clk
0:13:32.4]} 35. Bd4 {[%clk 0:10:24.2]} 35... Kf5 {[%clk 0:13:27.2]} 36. Kf2
{[%clk 0:10:18]} 36... g5 {[%clk 0:13:29.2]} 37. Ra5+ {[%clk 0:10:11.2]} 37...
Kg4 {[%clk 0:13:24.5]} 38. Bxf6 {[%clk 0:09:47.5]} 38... gxf4 {[%clk 0:13:27.8]}
39. gxf4 {[%clk 0:09:47.2]} 39... Kxf4 {[%clk 0:13:28.9]} 40. Ra4+ {[%clk
0:09:50]} 40... Kf5 {[%clk 0:13:32.1]} 41. Bd4 {[%clk 0:09:52.9]} 41... h5
{[%clk 0:13:31.6]} 42. g3 {[%clk 0:09:52.7]} 42... Ke6 {[%clk 0:13:30.3]} 43.
Rb4 {[%clk 0:09:53.6]} 43... Rf8+ {[%clk 0:13:32.9]} 44. Kg1 {[%clk 0:09:46.3]}
44... Rf3 {[%clk 0:13:25.6]} 45. Kh2 {[%clk 0:09:31.4]} 45... Rf1 {[%clk
0:13:19.7]} 46. Bg1 {[%clk 0:09:08.5]} 46... Rc1 {[%clk 0:13:10.2]} 47. Rb8
{[%clk 0:09:05.9]} 47... Rc2+ {[%clk 0:13:11.4]} 48. Kh3 {[%clk 0:09:05.1]}
48... Bg2+ {[%clk 0:13:11.9]} 49. Kh4 {[%clk 0:09:07.4]} 49... Rxc3 {[%clk
0:13:08.5]} 50. a8=Q {[%clk 0:08:50.4]} 50... Rc4+ {[%clk 0:13:04.6]} 51. Kxh5
{[%clk 0:08:45.4]} 51... Bxa8 {[%clk 0:13:05.9]} 52. Rxa8 {[%clk 0:08:48.7]}
52... Kf5 {[%clk 0:13:08.9]} 53. Rf8+ {[%clk 0:08:50.6]} 53... Ke6 {[%clk
0:13:11.6]} 54. Rf4 {[%clk 0:08:50.1]} 54... Rc3 {[%clk 0:13:12]} 55. g4 {[%clk
0:08:48.7]} 55... Rh3+ {[%clk 0:13:14.1]} 56. Kg6 {[%clk 0:08:45.8]} 56... Ke5
{[%clk 0:13:11.5]} 57. Rf5+ {[%clk 0:08:38.9]} 57... Ke4 {[%clk 0:13:14.6]} 58.
g5 {[%clk 0:08:33.7]} 58... Rg3 {[%clk 0:13:17.2]} 59. Bh2 {[%clk 0:08:21.4]}
59... Rg2 {[%clk 0:13:19.2]} 60. Bd6 {[%clk 0:08:23.4]} 60... Rc2 {[%clk
0:13:16.9]} 61. Re5+ {[%clk 0:08:11.6]} 61... Kf3 {[%clk 0:13:17.3]} 62. Kg7
{[%clk 0:08:11.3]} 62... Rc6 {[%clk 0:13:20.3]} 63. Bf8 {[%clk 0:07:55.7]} 63...
Kg4 {[%clk 0:13:18.6]} 64. g6 {[%clk 0:07:44.9]} 64... Kf4 {[%clk 0:13:20.1]}
65. Rd5 {[%clk 0:07:23.8]} 65... Rc7+ {[%clk 0:13:18.3]} 66. Kg8 {[%clk
0:07:18.2]} 66... Ke4 {[%clk 0:13:21.3]} 67. Rc5 {[%clk 0:07:19.6]} 67... Rd7
{[%clk 0:13:20.4]} 68. g7 {[%clk 0:07:13.7]} 68... Kd4 {[%clk 0:13:20.1]} 69.
Kh8 {[%clk 0:07:10]} 69... Rd8 {[%clk 0:13:13.2]} 70. g8=Q {[%clk 0:07:02.4]}
70... Ke3 {[%clk 0:13:16.8]} 71. Qg5+ {[%clk 0:07:05.6]} 71... Kf2 {[%clk
0:13:20.2]} 72. Qxd8 {[%clk 0:07:05.1]} 72... Kg1 {[%clk 0:13:23]} 73. Qg5+
{[%clk 0:07:07]} 73... Kf1 {[%clk 0:13:25.6]} 74. Rc1+ {[%clk 0:07:10.3]} 74...
Ke2 {[%clk 0:13:29]} 75. Qg2+ {[%clk 0:07:12]} 75... Kd3 {[%clk 0:13:32.3]} 76.
Rd1+ {[%clk 0:07:14.5]} 76... Kc4 {[%clk 0:13:35.8]} 77. Qc2+ {[%clk 0:07:18.5]}
77... Kb5 {[%clk 0:13:39]} 78. Rb1+ {[%clk 0:07:23]} 1-0